Cogmind - Beta 13 @@@ ROGUE MODE // 2024.04.01 @ 19:52:05 Player: Bean Result: Destroyed by S-10 Pest with Light Assault Rifle Performance ------------- Evolutions (2) 1000 Regions Visited (5) 1000 Robots Destroyed (15) 75 Value Destroyed (367) 367 Prototype IDs (0) 0 Alien Tech Used (0) 0 Bonus (0) 0 TOTAL SCORE: 2442 Bonus ------- None Cogmind --------- Core Integrity 0/550 Matter 34/300 Energy 99/100 System Corruption 0% Temperature Cool (0) Movement Core (50) Location -8/Materials Parts ------- > --- POWER (1) -------- (None) > --- PROPULSION (4) --- (None) > --- UTILITY (4) ------ (None) > --- WEAPON (2) ------- (None) > --- INVENTORY (5) ---- (None) Peak State ------------ > --- POWER ------------ Light Ion Engine > --- PROPULSION ------- Medium Treads Medium Treads > --- UTILITY ---------- Advanced ECM Suite Advanced ECM Suite Advanced ECM Suite > --- WEAPON ----------- Grenade Launcher Rocket Launcher > --- INVENTORY -------- Medium Treads Medium Treads Advanced ECM Suite [Rating: 25] Favorites ----------- Power Light Nuclear Core Engine Light Ion Engine Power Core Light Nuclear Core Propulsion Wheel Treads Medium Treads Wheel Wheel Flight Unit Flight Unit Utility Advanced ECM Suite Device Advanced ECM Suite Storage Small Storage Unit Weapon EM Pulse Gun Energy Gun EM Pulse Gun Launcher Grenade Launcher Build | -11 -10 -10 -9 -9 -8 ------- Run | Yrd Mat Min Mat Min Mat Slots Evolved 4 | . . . 2 . 2 Power . | . . . . . . Propulsion 2 | . . . 2 . . Utility 2 | . . . . . 2 Weapon . | . . . . . . Parts Attached 25 | 6 1 . 9 1 8 Power 3 | 1 1 . 1 . . Engine 2 | 1 . . 1 . . Core 1 | . 1 . . . . Reactor . | . . . . . . Propulsion 13 | 2 . . 7 . 4 Treads 4 | . . . . . 4 Leg . | . . . . . . Wheel 3 | 2 . . 1 . . Hover . | . . . . . . Flight 6 | . . . 6 . . Utility 5 | 1 . . . . 4 Device 4 | . . . . . 4 Storage 1 | 1 . . . . . Processor . | . . . . . . Hackware . | . . . . . . Protection . | . . . . . . Artifact . | . . . . . . Weapon 4 | 2 . . 1 1 . Energy Gun 2 | 2 . . . . . Energy Cannon . | . . . . . . Ballistic Gun . | . . . . . . Ballistic Cannon . | . . . . . . Launcher 2 | . . . 1 1 . Special Weapon . | . . . . . . Impact Weapon . | . . . . . . Slashing Weapon . | . . . . . . Piercing Weapon . | . . . . . . Special Melee Weapon . | . . . . . . Unidentified Prototypes . | . . . . . . Parts Lost 15 | . . . 4 . 11 Power 2 | . . . 1 . 1 Propulsion 6 | . . . 2 . 4 Utility 4 | . . . . . 4 Weapon 3 | . . . 1 . 2 Highest Loss Streak 6 | . . . 2 . 6 To Critical Strikes . | . . . . . . Average Slot Usage (%) 69 | . 85 85 69 85 54 Engine 4 | . 8 . . 11 4 Core 4 | . 6 14 8 . . Treads 5 | . . . . . 14 Wheel 11 | . 28 28 15 . . Flight 9 | . . . 18 44 2 Device 8 | . . . . . 21 Storage 7 | . 14 14 11 11 . Energy Gun 10 | . 28 28 10 . . Launcher 7 | . . . 5 19 11 Naked Turns 4 | . . . . . 4 Heaviest Build 19 | 14 14 14 14 15 19 Greatest Support 56 | 20 20 20 30 16 56 Greatest Overweight (x) 2 | . . . 1 . 2 Average Overweight (x) . | . . . . . . Largest Inventory Capacity 8 | 8 8 8 8 8 8 Average Capacity 6 | 6 8 8 8 8 5 Most Carried 4 | 2 3 2 4 1 4 Average Carried 1 | . 1 2 . . 2 Final Capacity 8 | 8 8 8 8 8 5 Final Carried 2 | . 2 2 . . . Class Distribution -------------------- 89% | Mutant 10% | Scavenger-Sprinter Dominant Class ---------------- Mutant | -10/Materials Mutant | -10/Mines Mutant | -9/Materials Scavenger-Sprinter | -9/Mines Mutant | -8/Materials Resources | -11 -10 -10 -9 -9 -8 ----------- Run | Yrd Mat Min Mat Min Mat Matter Collected 319 | 202 68 . 22 25 2 Remotely . | . . . . . . Salvage Created 282 | . 105 . 107 70 . Parts 25 | . 4 . 9 12 . Haulers Intercepted . | . . . . . . Recyclers Shooed . | . . . . . . Parts Field Recycled . | . . . . . . Retrieved Matter . | . . . . . . Parts Self-Destructed . | . . . . . . Prevented . | . . . . . . Kills | -11 -10 -10 -9 -9 -8 ------- Run | Yrd Mat Min Mat Min Mat Combat Hostiles Destroyed 12 | . 2 . 8 2 . Guns 4 | . 2 . 2 . . AOE 8 | . . . 6 2 . Classes Destroyed 5 | . 1 . 1 3 . Worker 1 | . . . . 1 . Builder 2 | . . . . 2 . Swarmer 5 | . . . 5 . . Grunt 6 | . 2 . 3 1 . Brawler 1 | . . . . 1 . Best Kill Streak 6 | . 2 . 6 5 . Combat Bots Only 6 | . 2 . 6 2 . Max Kills in Single Turn 3 | . 1 . 3 2 . Gunslinging . | . . . . . . Exploded 3 | . . . 3 1 . Melee . | . . . . . . Uniques/NPCs Destroyed . | . . . . . . Combat | -11 -10 -10 -9 -9 -8 -------- Run | Yrd Mat Min Mat Min Mat Hostile Shots Fired 227 | . 16 . 54 6 151 Missed 67 | . 2 . 16 2 47 Damage Taken 2159 | . 170 . 374 70 1545 Core 760 | . 70 . 124 14 552 Absorbed by Shields . | . . . . . . Core Remaining (%) 79 | 100 . 72 . 65 . Volleys Fired 27 | . 6 . 16 5 . Largest 2 | . 2 . 2 2 . Hottest 80 | . 80 . 80 63 . Shots Fired 42 | . 12 . 20 10 . Gun 21 | . 12 . 9 . . Cannon . | . . . . . . Launcher 21 | . . . 11 10 . Special . | . . . . . . Kinetic . | . . . . . . Thermal . | . . . . . . Explosive 21 | . . . 11 10 . Electromagnetic 21 | . 12 . 9 . . Robot Hit Streak 4 | . 4 . 4 3 . Robot Miss Streak 2 | . 1 . 2 . . Penetration Max . | . . . . . . Secondary Targets 1 | . 1 . . . . Max Gunslinging Chain 1 | . 1 . . . . Shots Hit Robots 18 | . 9 . 8 1 . Core Hits 24 | . 5 . 11 7 1 Critical Kills . | . . . . . . Critical Parts Destroyed . | . . . . . . Critical Strikes . | . . . . . . Melee Attacks . | . . . . . . Impact . | . . . . . . Slashing . | . . . . . . Piercing . | . . . . . . Sneak Attacks . | . . . . . . Combat Hostiles . | . . . . . . Follow-up Attacks . | . . . . . . Damage Inflicted 1015 | . 117 . 518 375 5 Guns 172 | . 117 . 55 . . Cannons . | . . . . . . Explosions 838 | . . . 463 375 . Melee . | . . . . . . Ramming 5 | . . . . . 5 Kinetic . | . . . . . . Thermal . | . . . . . . Explosive 838 | . . . 463 375 . Electromagnetic 172 | . 117 . 55 . . Impact . | . . . . . . Slashing . | . . . . . . Piercing . | . . . . . . Highest Corruption . | . . . . . . Average Corruption . | . . . . . . Corruption Purged . | . . . . . . Corruption Blocked . | . . . . . . Overload Shots . | . . . . . . Overflow Damage 24 | . . . 24 . . Projectiles . | . . . . . . Explosions 24 | . . . 24 . . Melee . | . . . . . . Knockbacks . | . . . . . . Impact . | . . . . . . Kinetic . | . . . . . . Secondary . | . . . . . . Self-Inflicted Damage 26 | . . . . 26 . Shots 2 | . . . . 2 . Rammed 2 | . . . . . 2 Targets Rammed 2 | . . . . . 2 Kicked . | . . . . . . Crushed . | . . . . . . Highest Temperature 177 | . 177 . 60 34 14 Average Temperature 48 | . 91 . 30 17 8 Received Heat Transfer 969 | . 102 . 96 24 747 Siege Activations . | . . . . . . Robots Corrupted . | . . . . . . Combat Hostiles . | . . . . . . Parts Fried . | . . . . . . Impact Corruptions . | . . . . . . Robots Melted . | . . . . . . Combat Hostiles . | . . . . . . Parts Melted . | . . . . . . Heat Transferred . | . . . . . . Parts Sabotaged . | . . . . . . Parts Stolen . | . . . . . . Parts Stripped . | . . . . . . Power Chain Reactions . | . . . . . . Alert | -11 -10 -10 -9 -9 -8 ------- Run | Yrd Mat Min Mat Min Mat Peak Influence 234 | . 65 25 217 234 121 Initial 91 | . . 25 9 84 91 Average 64 | . 30 25 63 148 86 Maximum Alert Level 1 | . . . 1 1 . Low Security (%) 95 | 100 100 100 90 68 100 Level 1 4 | . . . 10 31 . Level 2 . | . . . . . . Level 3 . | . . . . . . Level 4 . | . . . . . . Level 5 . | . . . . . . High Security . | . . . . . . Max Security . | . . . . . . Squads Dispatched 3 | . 1 . . . 2 Investigation . | . . . . . . Extermination . | . . . . . . Reinforcement 3 | . 1 . . . 2 Assault . | . . . . . . Garrison . | . . . . . . Intercept . | . . . . . . Searches Triggered . | . . . . . . Construction Impeded . | . . . . . . Haulers Reinforced . | . . . . . . Active Scanning Responses . | . . . . . . Cargo Convoy Interrupts . | . . . . . . Stealth | -11 -10 -10 -9 -9 -8 --------- Run | Yrd Mat Min Mat Min Mat Distress Signals 2 | . 1 . 1 . . Communications Jammed . | . . . . . . Distress Signals . | . . . . . . Times Spotted 27 | . 3 . 10 2 12 Peak Tracking Total 11 | . 3 . 8 2 11 Tactical Retreats 1 | . . . . . 1 Traps | -11 -10 -10 -9 -9 -8 ------- Run | Yrd Mat Min Mat Min Mat Traps Triggered . | . . . . . . Indirectly . | . . . . . . Trap Hack Attempts . | . . . . . . Triggered . | . . . . . . Disarmed . | . . . . . . Reprogrammed . | . . . . . . Reused . | . . . . . . Traps Extracted . | . . . . . . Installed . | . . . . . . Triggered . | . . . . . . Machines | -11 -10 -10 -9 -9 -8 ---------- Run | Yrd Mat Min Mat Min Mat Machines Disabled 4 | . . . . 4 . Max in Single Turn 2 | . . . . 2 . Machines Repaired . | . . . . . . Machines Dismantled . | . . . . . . Machines Sabotaged . | . . . . . . Overloaded Fab Kills . | . . . . . . Hacking | -11 -10 -10 -9 -9 -8 --------- Run | Yrd Mat Min Mat Min Mat Machines Accessed . | . . . . . . Terminals . | . . . . . . Fabricators . | . . . . . . Repair Stations . | . . . . . . Recycling Units . | . . . . . . Scanalyzers . | . . . . . . Garrison Access . | . . . . . . Total Hacks . | . . . . . . Successful . | . . . . . . Failed . | . . . . . . Catastrophic . | . . . . . . Database Lockouts . | . . . . . . Manual . | . . . . . . Terminals . | . . . . . . Fabricators . | . . . . . . Repair Stations . | . . . . . . Recycling Units . | . . . . . . Scanalyzers . | . . . . . . Garrison Access . | . . . . . . Terminal Hacks . | . . . . . . Fabricator Hacks . | . . . . . . Repair Station Hacks . | . . . . . . Recycling Unit Hacks . | . . . . . . Scanalyzer . | . . . . . . Garrison Access Hacks . | . . . . . . Unauthorized Hacks . | . . . . . . Terminals . | . . . . . . Fabricators . | . . . . . . Repair Stations . | . . . . . . Recycling Units . | . . . . . . Scanalyzers . | . . . . . . Garrison Access . | . . . . . . Data Cores Recovered . | . . . . . . Used . | . . . . . . Hacking Detections . | . . . . . . Full Trace Events . | . . . . . . Feedback Events . | . . . . . . Feedback Blocked . | . . . . . . Robot Schematics Acquired . | . . . . . . Robots Built . | . . . . . . Authchips . | . . . . . . Time . | . . . . . . Total Robot Build Rating . | . . . . . . Part Schematics Acquired . | . . . . . . Parts Built . | . . . . . . Authchips . | . . . . . . Time . | . . . . . . Total Part Build Rating . | . . . . . . Parts Repaired . | . . . . . . Time . | . . . . . . Parts Recycled . | . . . . . . Recycled Matter . | . . . . . . Retrieved Matter . | . . . . . . Retrieved Components . | . . . . . . Parts Scanalyzed . | . . . . . . Part Schematics Acquired . | . . . . . . Parts Damaged . | . . . . . . Bothacking | -11 -10 -10 -9 -9 -8 ------------ Run | Yrd Mat Min Mat Min Mat Used RIF Installer . | . . . . . . Robots Hacked . | . . . . . . Non-combat . | . . . . . . Combat . | . . . . . . Robot Hacks Applied . | . . . . . . Relay Couplers Released . | . . . . . . Fabnet Peak Effective % . | . . . . . . Robots Rewired . | . . . . . . Allies Hacked . | . . . . . . Hacks Repelled . | . . . . . . Allies | -11 -10 -10 -9 -9 -8 -------- Run | Yrd Mat Min Mat Min Mat Total Allies . | . . . . . . Largest Group . | . . . . . . Highest-Rated Group . | . . . . . . Highest-Rated Ally . | . . . . . . Total Orders . | . . . . . . Ally Attacks . | . . . . . . Total Damage . | . . . . . . Kills . | . . . . . . Allies Corrupted . | . . . . . . Allies Melted . | . . . . . . Intel | -11 -10 -10 -9 -9 -8 ------- Run | Yrd Mat Min Mat Min Mat Robot Analysis Total . | . . . . . . Derelict Logs Recovered . | . . . . . . Drone Launches . | . . . . . . Drone Recoveries . | . . . . . . Exploration | -11 -10 -10 -9 -9 -8 ------------- Run | Yrd Mat Min Mat Min Mat Turns Passed 611 | 46 140 17 150 41 217 Spaces Moved 528 | 46 130 22 142 58 130 Core 27 | 7 . . . . 20 Treads 101 | . . . . . 101 Legs . | . . . . . . Wheels 258 | 39 130 22 67 . . Hover . | . . . . . . Flight 142 | . . . 75 58 9 Fastest Speed 31 | 50 80 80 31 31 31 Average Speed 85 | 75 80 80 65 31 142 Slowest Speed 160 | 80 80 80 114 31 160 Overloaded Moves . | . . . . . . Propulsion Burnouts . | . . . . . . Robots Hopped 1 | . . . . 1 . Cave-ins Triggered . | . . . . . . Exploration Rate (%) 14 | 4 25 10 13 18 14 Regions Visited 5 Branch Regions 2 Pre-discovered Areas . | . . . . . . Known Exits Taken . | . . . . . . Unknown Exits Taken 5 | 1 1 1 1 1 . Scrap Searched . | . . . . . . Spaces Dug . | . . . . . . Terrain Destroyed 100 | . . . 59 41 . Melee . | . . . . . . Projectile . | . . . . . . AOE 100 | . . . 59 41 . Terrain Rammed . | . . . . . . Walls Destroyed . | . . . . . . Machines Disabled . | . . . . . . Actions | -11 -10 -10 -9 -9 -8 --------- Run | Yrd Mat Min Mat Min Mat Total 642 | 57 153 21 179 69 163 Wait 31 | . 13 . 2 6 10 Move 521 | 45 129 21 141 55 130 Hop 1 | . . . . 1 . Pick Up 25 | 6 3 . 7 1 8 Fast Attach . | . . . . . . Attach 23 | 6 . . 9 1 7 Detach . | . . . . . . Swap 2 | . 1 . . . 1 Drop 10 | . 1 . 4 . 5 Fire 27 | . 6 . 16 5 . Melee . | . . . . . . Ram . | . . . . . . Kick . | . . . . . . Crush 2 | . . . . . 2 Escape Stasis . | . . . . . . Rewire . | . . . . . . Trap . | . . . . . . Miscellaneous . | . . . . . . Route ------- -11/Scrapyard -10/Materials (discovered 2 exits: *Mat / [*Min]) -10/Mines -9/Materials -9/Mines -8/Materials History --------- Turn | Location | Event 5 | -11/Scrapyard | Discovered new exit (range 16) 47 | -11/Scrapyard | Entered Materials 175 | -10/Materials | Discovered new exit (range 15) 186 | -10/Materials | Discovered new exit (range 16) 187 | -10/Materials | Entered Mines 195 | -10/Mines | Discovered new exit (range 12) 204 | -10/Mines | Entered Materials 204 | -9/Materials | Evolved 2 slots: Propulsion x2 323 | -9/Materials | Build established: Mutant 349 | -9/Materials | Discovered new exit (range 14) 354 | -9/Materials | Entered Mines 362 | -9/Mines | Received a Rocket Launcher from a helpful Derelict 390 | -9/Mines | Discovered new exit (range 14) 395 | -9/Mines | Entered Materials 395 | -8/Materials | Evolved 2 slots: Utility x2 580 | -8/Materials | Lost 6 parts (2n2u2w) 597 | -8/Materials | Core integrity fell below 50% 603 | -8/Materials | Core integrity fell below 20% 612 | -8/Materials | Destroyed by S-10 Pest with Light Assault Rifle Last Messages --------------- K-01 Serf collects debris. You are entering the active sensor range of a Heavy class robot, which gives away their position but also has a chance to call more squads to reinforce the local area while you are within range. K-01 Serf collects debris. K-01 Serf destroyed. G-47 Trooper suffers critical hit (Burn). Critical hit (Burn: +37). Acquired 2 matter. Med. Treads destroyed. Critical hit (Burn: +37). Med. Treads destroyed. Slug penetrates Y-45 Defender. K-01 Serf collects debris. Knocked back. K-01 Serf collects debris. Adv. ECM Suite destroyed. K-01 Serf collects debris. Map ----- +----------------------------------------------------+ | ???????????????????????????????????? | | ???????????????????????????????????? | | ???????????????????????????????????? | | ???????????????????????????????????? | | ???????????????????????????????????? | | ???????????????????????????????????? | | ???????????????????????????????????? | | ???????????????????????????????????? | | ???????????????????????????????????? | | ???????????????????????????????????? | | ???????????????????????????????????? | | ???????????????????????????????????? | | ???????????????????????????????????? | | ???????????????????????????????????? | | ???????????????????????????????????? | | ???????????????????????????????????? | | ???????????????????????????????????? | | ???????????????????????????????????? | | ???????????????????????????????????? | | ???????????????????????????????????? | | ???????????????????????????????????? | | ???????????????????????????????????? | | ???????????????????????????????????? | | ???????????????????????????????????? | | ???????????????????????###########?? | | ???????????????????????# @ #?? | | ???????????????????????# k #?? | | ???????????????????????# #?? | | ???????????????????????# #?? | | ???????????????????????# #?? | | ???????????????????????# % #?? | | ???????????????????????# ss #?? | | ????????????????# ?????# s #?? | | ???????????????## ???#####s#####?? | | ???????????????# [ ##### g ##??? | | ???????????????# Hg "#??? | | ??????????????+ Y ##??? | | ??????????????## g #???? | | ???????????????# ##### #???? | | ???????????????###+#?????## %##???? | | ??????????????????????????# #????? | | ??????????????????????????# #????? | | ??????????????????????????# #????? | | ?????????????????????????## ##???? | | ?????????????????????????# #???? | | ?????????????????????????# #???? | | ?????????????????????????# T #???? | | ?????????????????????????# #???? | | ?????????????????????????# #???? | | ????????????????##???????## #####? | +----------------------------------------------------+ Best States ------------- Heat Dissipation 31 Energy Generation 14 Energy Capacity 250 Matter Stores 300 Matter Capacity 300 Sight Range 16 Terrain Scan Density 10 Evasion (%) 63 Recoil Reduction 2 Item Schematics ----------------- None Robot Schematics ------------------ None Fabricated ------------ Nothing Alien Tech Used ----------------- None Achievements -------------- Oops Challenges ------------ None Game ------ Seed ScatterStasisFrame Manual? 0 Play Time 00:11:46 Cumulative 2.9 hours Start 2024.04.01 @ 19:42:35 End 2024.04.01 @ 19:52:05 Sessions 1 Manual Loads 0 Difficulty Rogue Special Mode None Game No. 7 Rogue 7 Adventurer 0 Explorer 0 Win Type - Total 0 Types 0/0/0/0/0/0/0/0/0 Lore% 4 Gallery% 9 Achievement% 9 Wizard Run 0 Options --------- Layout 2 ASCII 0 Keyboard 0 Movement Numpad Keybinds 0 Fullscreen 1 Font 24/Smallcaps Map View 50x44 Zoom Use 0% Tactical HUD 0 Map Filters NONE Filters NONE Steam 1 RUN: 116e87d9-2138-4159-9baa-2cdee9986c7c